bitfinex/quotes_SOLUSD_20251009
["timestamp","ask_amount","ask_price","bid_price","bid_amount"]
[1759971719074,33.40194958,228.51,228.48,0.1]
[1759971719264,0.68,228.5,228.48,0.1]
[1759971719466,0.68,228.49,228.48,0.1]
[1759971719894,2.70194958,228.49,228.48,0.1]
[1759971720178,7.07850872,228.49,228.48,0.1]
[1759971722474,20.8,228.47,228.46,0.1]
[1759971722780,45.62037437,228.47,228.46,0.1]
[1759971722963,31.67647521,228.44,228.43,0.1]
[1759971723163,64.45842479,228.44,228.43,0.1]
[1759971723354,30.8,228.44,228.43,0.1]
[1759971723558,31.48,228.44,228.43,0.1]
[1759971723970,31.48,228.44,228.41,0.1]
[1759971723971,10.87647521,228.43,228.41,0.1]
[1759971724298,17.27613349,228.43,228.41,0.1]
[1759971724471,38.75613349,228.43,228.41,0.1]
[1759971726588,20.8,228.43,228.41,0.1]
[1759971726793,32.88194958,228.43,228.41,0.1]
[1759971727874,33.54194958,228.43,228.41,0.1]
[1759971728573,37.91965828,228.43,228.41,0.1]
[1759971728780,4.3777087,228.43,228.41,0.1]
[1759971728989,37.91965828,228.43,228.41,0.1]
[1759971729283,30.86,228.43,228.42,0.78]
[1759971729787,32.88194958,228.43,228.42,0.1]
[1759971730294,33.54194958,228.43,228.42,0.1]
[1759971730669,32.88194958,228.43,228.42,0.1]
[1759971732076,30.88,228.43,228.42,0.78]
[1759971732281,30.88,228.43,228.42,0.1]
[1759971732589,32.90194958,228.43,228.42,0.1]
[1759971732794,37.93965828,228.43,228.42,0.1]
[1759971733392,48.81613349,228.43,228.42,0.1]
[1759971734177,46.79418391,228.43,228.42,0.1]
[1759971734379,48.81613349,228.43,228.42,0.1]
[1759971735288,49.31613349,228.43,228.42,0.1]
[1759971735796,49.31613349,228.43,228.42,1e-08]
[1759971737197,42.91647521,228.43,228.42,1e-08]
[1759971737414,44.93842479,228.43,228.42,1e-08]
[1759971737600,49.31613349,228.43,228.42,1e-08]
[1759971737798,16.41418391,228.43,228.42,1e-08]
[1759971738095,49.33613349,228.43,228.42,1e-08]
[1759971741009,49.33613349,228.43,228.4,1e-08]
[1759971741010,31.67647521,228.41,228.4,1e-08]
[1759971741316,10.87647521,228.4,228.38,1e-08]
[1759971741517,45.86037437,228.39,228.38,1e-08]
[1759971741896,46.52037437,228.39,228.38,1e-08]
[1759971742218,44.49842479,228.39,228.38,1e-08]
[1759971743315,50.89884978,228.39,228.38,1e-08]
[1759971745490,48.8769002,228.39,228.38,1e-08]
[1759971747507,50.89884978,228.39,228.38,1e-08]
[1759971748107,46.85495062,228.39,228.38,1e-08]
[1759971748421,53.81326312,228.39,228.38,1e-08]
[1759971748595,55.56714907,228.39,228.38,1e-08]
[1759971750007,58.01111986,228.39,228.38,1e-08]
[1759971751931,57.35111986,228.39,228.38,1e-08]
[1759971752123,58.01111986,228.39,228.38,1e-08]
[1759971754418,10.87647521,228.37,228.36,0.1]
[1759971754624,10.87647521,228.35,228.34,0.1]
[1759971754818,62.55647521,228.35,228.34,0.1]
[1759971755007,63.8540492,228.35,228.34,0.1]
[1759971755210,47.43329159,228.35,228.34,0.1]
[1759971755406,50.35369831,228.35,228.34,0.1]
[1759971758725,19.47369831,228.35,228.34,0.76]
[1759971758916,50.33369831,228.35,228.34,0.76]
[1759971759426,50.33369831,228.35,228.34,0.1]
[1759971759729,19.47369831,228.35,228.34,0.1]
[1759971759905,50.33369831,228.35,228.34,0.1]
[1759971760612,19.47369831,228.35,228.34,0.1]
[1759971760820,50.33369831,228.35,228.34,0.1]
[1759971761531,19.47369831,228.35,228.34,0.1]
[1759971761712,50.31369831,228.35,228.34,0.1]
[1759971762535,19.47369831,228.35,228.34,0.1]
[1759971762735,50.31369831,228.35,228.34,0.1]
[1759971764419,48.99612432,228.35,228.34,0.1]
[1759971764742,50.29369831,228.35,228.34,0.1]
[1759971764942,19.47369831,228.35,228.34,0.1]
[1759971765433,50.29369831,228.35,228.34,0.1]
[1759971765628,19.47369831,228.35,228.34,0.1]
[1759971766238,50.29369831,228.35,228.34,0.1]
[1759971766437,50.29369831,228.35,228.34,0.8]
[1759971766647,50.29369831,228.35,228.34,0.1]
[1759971766849,50.96369831,228.35,228.34,0.1]
[1759971767414,18.84612432,228.35,228.34,0.1]
[1759971767718,52.71789192,228.35,228.34,0.1]
[1759971768125,52.71789192,228.35,228.34,1e-08]
[1759971768327,72.22031793,228.35,228.34,1e-08]
[1759971768522,73.51789192,228.35,228.34,1e-08]
[1759971769824,72.22031793,228.35,228.34,1e-08]
[1759971770023,73.51789192,228.35,228.34,1e-08]
[1759971770438,71.53031793,228.35,228.34,1e-08]
[1759971770641,73.49789192,228.35,228.34,1e-08]
[1759971770821,72.82789192,228.35,228.34,1e-08]
[1759971771222,71.74369831,228.35,228.34,1e-08]
[1759971771539,71.07369831,228.35,228.34,1e-08]
[1759971771714,71.74369831,228.35,228.34,1e-08]
[1759971771918,40.94369831,228.35,228.34,1e-08]
[1759971772327,71.74369831,228.35,228.34,1e-08]
[1759971774040,71.07369831,228.35,228.34,1e-08]
[1759971774345,69.75612432,228.35,228.34,0.70000001]
[1759971774528,71.05369831,228.35,228.34,0.70000001]
[1759971775542,71.05369831,228.35,228.34,1e-08]
[1759971775849,50.25369831,228.35,228.34,1e-08]
[1759971777548,71.05369831,228.35,228.34,1e-08]
[1759971777739,38.97612432,228.35,228.34,0.70000001]
[1759971777940,71.05369831,228.35,228.34,0.70000001]
[1759971778246,71.05369831,228.35,228.34,1e-08]
[1759971778548,71.05369831,228.35,228.34,0.70000001]
[1759971779973,40.27369831,228.35,228.34,0.70000001]
[1759971780249,71.05369831,228.35,228.34,0.70000001]
[1759971780454,50.92369831,228.35,228.34,1e-08]
[1759971780745,31.67647521,228.33,228.32,1e-08]
[1759971780948,31.67647521,228.29,228.26,0.7]
[1759971781138,1.29757399,228.27,228.26,0.7]
[1759971781332,12.1740492,228.27,228.26,0.7]
[1759971781538,10.87647521,228.26,228.25,0.1]
[1759971781737,51.082913,228.26,228.25,0.1]
[1759971781951,10.87647521,228.22,228.16,0.7]
[1759971782250,12.1740492,228.17,228.16,0.7]
[1759971782442,10.87647521,228.16,228.15,0.1]
[1759971782640,12.1740492,228.16,228.15,0.1]
[1759971782846,12.1740492,228.16,228.15,0.8]
[1759971783226,20.8,228.19,228.15,0.8]
[1759971783427,1.29757399,228.16,228.15,0.8]
[1759971783633,32.21757399,228.16,228.15,0.8]
[1759971784251,1.29757399,228.16,228.15,0.8]
[1759971784559,32.23757399,228.16,228.15,0.8]
[1759971786949,32.23757399,228.16,228.15,0.1]
[1759971788353,32.21757399,228.16,228.15,0.1]
[1759971789249,47.4769384,228.16,228.15,0.1]
[1759971789449,48.1969384,228.16,228.15,0.1]
[1759971789761,74.18723436,228.16,228.15,0.1]
[1759971791373,53.38723436,228.16,228.15,0.1]
[1759971791549,21.74723436,228.16,228.15,0.1]
[1759971791745,10.87647521,228.16,228.15,0.79]
[1759971791953,1.29757399,228.16,228.15,0.79]
[1759971792175,30.92,228.16,228.15,0.79]
[1759971792681,10.87647521,228.24,228.15,0.79]
[1759971792987,35.47757399,228.26,228.15,16.13078456]
[1759971793281,1.29757399,228.29,228.22,1.29757399]
[1759971793469,30.94,228.28,228.23,0.69]
[1759971793777,1.29757399,228.25,228.23,0.69]
[1759971793982,30.92,228.24,228.23,0.69]
[1759971794491,32.21757399,228.24,228.2,0.69]
[1759971794655,32.21757399,228.24,228.17,4.38250794]
[1759971794656,1.29757399,228.21,228.17,4.38250794]
[1759971794860,32.21757399,228.2,228.17,4.38250794]
[1759971795169,32.21757399,228.2,228.18,0.69]
[1759971795349,1.29757399,228.19,228.18,0.69]
[1759971795672,30.92,228.2,228.18,0.69]
[1759971796555,30.92,228.2,228.19,4.38231298]
[1759971796755,30.92,228.2,228.19,0.69]
[1759971798350,31.42,228.2,228.19,0.69]
[1759971798550,31.42,228.2,228.19,5.07231298]
[1759971800982,32.71757399,228.2,228.17,0.69]
[1759971801183,32.71757399,228.2,228.15,0.79]
[1759971801184,1.29757399,228.18,228.15,0.79]
[1759971801380,32.19757399,228.17,228.15,0.79]
[1759971801892,32.19757399,228.17,228.16,0.69]
[1759971802493,30.9,228.17,228.16,0.69]
[1759971802800,32.19757399,228.17,228.16,0.69]
[1759971803484,32.19757399,228.17,228.15,0.1]
[1759971803687,1.29757399,228.16,228.15,0.1]
[1759971806304,5.68046319,228.16,228.15,0.1]
[1759971806506,17.2769384,228.16,228.15,0.1]
[1759971809005,22.46723436,228.16,228.15,0.1]
[1759971809887,20.04180037,228.16,228.15,0.1]
[1759971813004,50.98180037,228.16,228.15,0.1]
[1759971815584,15.25936441,228.16,228.15,0.1]
[1759971815782,50.92180037,228.16,228.15,0.1]
[1759971816392,48.89058239,228.16,228.15,0.1]
[1759971817983,50.92180037,228.16,228.15,0.1]
[1759971819901,19.98180037,228.16,228.15,0.1]
[1759971820121,50.90180037,228.16,228.15,0.1]
[1759971824804,50.86180037,228.16,228.15,0.1]
[1759971826417,17.29058239,228.16,228.15,0.78]
[1759971826716,48.17058239,228.16,228.15,0.1]
[1759971827591,17.29058239,228.16,228.15,0.78]
[1759971827796,22.83121798,228.16,228.15,0.78]
[1759971828007,2.03121798,228.16,228.15,0.78]
[1759971828318,0.5,228.2,228.15,5.16307958]
[1759971828495,0.5,228.2,228.16,0.68]
[1759971828496,30.88,228.19,228.16,0.68]
[1759971828694,0.5,228.2,228.17,2.03121798]
[1759971829014,0.5,228.2,228.18,0.68]
[1759971829229,4.38113539,228.32,228.19,2.03121798]
[1759971829388,2.03121798,228.28,228.21,4.38192892]
[1759971829591,30.9,228.27,228.22,0.68]
[1759971829792,2.03121798,228.31,228.24,2.03121798]
[1759971830004,30.9,228.3,228.25,0.68]
[1759971830711,30.92,228.3,228.26,2.03121798]
[1759971830892,32.95121798,228.3,228.27,0.68]
[1759971832415,0.7,228.41,228.27,7.09196783]
[1759971832717,2.03121798,228.36,228.28,0.68]
[1759971832917,30.98,228.35,228.29,2.03121798]
[1759971833122,30.98,228.35,228.3,0.68]
[1759971833424,2.03121798,228.31,228.3,0.68]
[1759971833798,33.01121798,228.32,228.3,0.68]
[1759971834202,2.03121798,228.31,228.26,0.68]
[1759971834402,35.35982433,228.32,228.2,10.954876]
[1759971834403,2.03121798,228.28,228.27,0.68]
[1759971834605,2.03121798,228.28,228.21,6.4131469]
[1759971834606,30.98,228.28,228.22,2.03121798]
[1759971834921,20.8,228.34,228.23,2.03121798]
[1759971835100,10.87647521,228.29,228.24,0.68]
[1759971835306,33.01121798,228.28,228.24,0.68]
[1759971835513,30.98,228.27,228.24,0.68]
[1759971835716,30.98,228.27,228.24,5.0613274]
[1759971835915,30.98,228.27,228.25,0.68]
[1759971836123,30.98,228.27,228.26,0.68]
[1759971836705,4.38008188,228.31,228.26,0.68]
[1759971837012,2.03121798,228.28,228.26,0.68]
[1759971837214,31.04,228.27,228.26,0.68]
[1759971839725,33.07121798,228.27,228.2,12.98652034]
[1759971840043,31.04,228.27,228.23,0.68]
[1759971840242,32.37647521,228.33,228.24,0.68]
[1759971840411,2.03121798,228.3,228.24,0.68]
[1759971840613,31.02,228.29,228.24,0.68]
[1759971840807,2.03121798,228.33,228.25,2.03121798]
[1759971841013,2.03121798,228.33,228.24,21.48]
[1759971841014,31.02,228.32,228.26,2.71121798]
[1759971841312,31.02,228.32,228.21,15.33675123]
[1759971841313,31.02,228.32,228.28,2.03121798]
[1759971841521,31.02,228.32,228.29,0.68]
[1759971841816,2.03121798,228.31,228.27,0.68]
[1759971842717,2.03121798,228.29,228.26,4.38096907]
[1759971843114,31.02,228.32,228.27,0.68]
[1759971843322,31.02,228.32,228.28,0.68]
[1759971843524,31.02,228.32,228.29,0.68]
[1759971844046,2.03121798,228.36,228.3,0.68]
[1759971844219,31.02,228.35,228.3,0.68]
[1759971844418,31.02,228.35,228.31,0.68]
[1759971844823,33.05121798,228.35,228.31,0.68]
[1759971845136,33.05121798,228.35,228.31,5.05987316]
[1759971845544,31.02,228.35,228.31,5.05987316]
[1759971845837,33.05121798,228.35,228.31,5.05987316]
[1759971846441,31.02,228.35,228.31,5.05987316]
[1759971846623,33.05121798,228.35,228.31,5.05987316]
[1759971848444,20.8,228.4,228.32,0.71]
[1759971848617,2.03121798,228.38,228.32,2.74121798]
[1759971849435,2.03121798,228.38,228.32,0.71]
[1759971849618,2.03121798,228.38,228.32,2.74121798]
[1759971850134,2.03121798,228.38,228.33,4.37962597]
[1759971850337,2.03121798,228.38,228.33,5.08962597]
[1759971850739,2.03121798,228.37,228.33,5.08962597]
[1759971850937,2.03121798,228.37,228.29,4.38024718]
[1759971851239,2.03121798,228.3,228.26,0.71]
[1759971851443,2.03121798,228.31,228.27,0.71]
[1759971852035,2.03121798,228.29,228.25,20.8]
[1759971853446,0.7,228.27,228.21,0.71]
[1759971853629,2.03121798,228.26,228.21,0.71]
[1759971854145,2.03121798,228.26,228.22,4.38173692]
[1759971854539,2.03121798,228.23,228.19,4.38231298]
[1759971855071,2.03121798,228.24,228.19,4.38231298]
[1759971855234,2.73121798,228.24,228.19,4.38231298]
[1759971855638,0.7,228.24,228.19,0.71]
[1759971856948,2.73121798,228.24,228.2,4.38212094]
[1759971857747,0.7,228.24,228.2,4.38212094]
[1759971858343,4.38098997,228.26,228.2,4.38212094]
[1759971858344,0.7,228.26,228.2,4.38212094]
[1759971858545,2.73121798,228.26,228.2,4.38212094]
[1759971861843,2.73121798,228.26,228.2,6.41333892]
[1759971862528,0.7,228.26,228.2,6.41333892]
[1759971862722,2.73121798,228.26,228.2,6.41333892]
[1759971863942,2.03121798,228.28,228.22,2.03121798]
[1759971864141,30.96,228.27,228.22,2.03121798]
[1759971864334,31.66,228.27,228.22,2.03121798]
[1759971864543,0.7,228.26,228.22,2.03121798]
[1759971864847,0.7,228.26,228.2,4.38212094]
[1759971864848,2.03121798,228.26,228.2,17.36864128]
[1759971865047,2.73121798,228.25,228.2,6.41333892]
[1759971865249,2.73121798,228.24,228.2,4.38212094]
[1759971866157,2.73121798,228.24,228.16,20.8]
[1759971866158,2.73121798,228.23,228.16,2.74121798]
[1759971866831,2.73121798,228.23,228.16,18.08133018]
[1759971867033,2.73121798,228.23,228.17,2.03121798]
[1759971867442,0.7,228.26,228.18,2.74121798]
[1759971867640,2.73121798,228.26,228.2,2.03121798]
[1759971867842,30.94,228.25,228.2,2.03121798]
[1759971868047,31.64,228.25,228.2,7.12315215]
[1759971868461,33.67121798,228.25,228.2,5.09193417]
[1759971868754,32.97121798,228.25,228.21,0.71]
[1759971868961,31.64,228.25,228.2,6.41315215]
[1759971869141,31.64,228.25,228.21,0.71]
[1759971869535,31.64,228.25,228.2,6.41315215]
[1759971870136,134.3,228.29,228.2,6.41315215]
[1759971870137,0.7,228.3,228.24,2.03121798]
[1759971870455,0.7,228.3,228.2,4.38193417]
[1759971870456,0.7,228.32,228.27,2.03121798]
[1759971870651,0.7,228.32,228.25,0.71]
[1759971870652,32.95121798,228.31,228.25,0.71]
[1759971870956,33.65121798,228.31,228.25,0.71]
[1759971871459,33.65121798,228.31,228.26,4.38096907]
[1759971871664,0.7,228.3,228.26,4.38096907]
[1759971872052,1.13519776,228.3,228.24,4.38119851]
[1759971872368,1.13519776,228.27,228.23,4.38153199]
[1759971872660,0.7,228.26,228.23,4.38153199]
[1759971872964,1.13519776,228.27,228.23,4.38153199]
[1759971873136,35.30006033,228.31,228.23,4.38153199]
[1759971873340,0.7,228.27,228.22,4.38173692]
[1759971873550,0.7,228.27,228.22,5.09173692]
[1759971875741,1.13519776,228.24,228.19,5.06231298]
[1759971875941,1.85519776,228.24,228.19,5.06231298]
[1759971876965,30.92,228.26,228.18,4.38248734]
[1759971876966,1.13519776,228.22,228.18,4.38248734]
[1759971877159,1.85519776,228.22,228.18,4.38248734]
[1759971878567,1.85519776,228.22,228.17,4.38269711]
[1759971878767,1.85519776,228.22,228.17,5.06269711]
[1759971879751,0.72,228.22,228.17,5.06269711]
[1759971880974,0.72,228.22,228.17,4.38269711]
[1759971881276,1.13519776,228.23,228.18,0.68]
[1759971881488,1.85519776,228.23,228.18,0.68]
[1759971881852,32.77519776,228.23,228.18,0.68]
[1759971882363,32.77519776,228.23,228.19,4.38231298]
[1759971882570,32.05519776,228.23,228.19,4.38231298]
[1759971882778,0.72,228.22,228.19,4.38231298]
[1759971883963,0.72,228.22,228.18,4.38250503]
[1759971884659,32.05519776,228.23,228.18,4.38250503]
[1759971884858,32.75519776,228.23,228.18,5.07250503]
[1759971885053,30.9,228.22,228.18,5.07250503]
[1759971885459,31.6,228.22,228.18,5.07250503]
[1759971885982,0.7,228.21,228.17,4.38269711]
[1759971886170,0.7,228.2,228.17,4.38269711]
[1759971886378,0.7,228.19,228.17,4.38269711]
[1759971886579,1.83519776,228.21,228.17,4.38269711]
[1759971886765,1.13519776,228.21,228.17,4.38269711]
[1759971886957,1.83519776,228.21,228.17,4.38269711]
[1759971887180,1.83519776,228.21,228.16,15.3401122]
[1759971887383,0.7,228.21,228.17,0.69]
[1759971887980,0.7,228.21,228.15,20.9]
[1759971887981,1.13519776,228.19,228.15,20.9]
[1759971888187,1.83519776,228.19,228.15,25.28305393]
[1759971888378,1.13519776,228.2,228.15,25.97305393]
[1759971888565,1.83519776,228.2,228.15,25.97305393]
[1759971888986,1.13519776,228.2,228.15,25.97305393]
[1759971889164,0.7,228.19,228.15,25.28305393]
[1759971889487,0.7,228.19,228.15,25.97305393]
[1759971890866,0.7,228.19,228.15,5.17305393]
[1759971891286,1.13519776,228.18,228.15,0.1]
[1759971891495,1.13519776,228.16,228.15,0.1]
[1759971891793,1.83519776,228.16,228.15,0.1]
[1759971899785,6.21808696,228.16,228.15,0.1]
[1759971900588,17.09456217,228.16,228.15,0.1]
[1759971900982,11.57647521,228.16,228.15,0.1]
[1759971901201,12.71167297,228.16,228.15,0.1]
[1759971901985,17.09456217,228.16,228.15,0.1]
[1759971903297,20.8,228.13,228.11,0.1]
[1759971903494,31.97519776,228.12,228.11,0.1]
[1759971903684,32.67519776,228.12,228.11,0.1]
[1759971904097,43.55167297,228.12,228.11,0.1]
[1759971905379,46.80013293,228.12,228.11,0.1]
[1759971905579,47.93533069,228.12,228.11,0.1]
[1759971906399,12.01167297,228.12,228.11,0.1]
[1759971906603,42.85167297,228.12,228.11,0.1]
[1759971907185,31.97519776,228.12,228.11,0.1]
[1759971907505,31.97519776,228.12,228.11,0.82]
[1759971907506,30.84,228.12,228.11,0.82]
[1759971908095,30.84,228.12,228.11,0.1]
[1759971908383,165.14,228.12,228.11,0.1]
[1759971908691,166.97519776,228.12,228.11,0.1]
[1759971909076,177.85167297,228.12,228.11,0.1]
[1759971909503,182.23533069,228.12,228.11,0.1]
[1759971910182,181.53533069,228.12,228.11,0.1]
[1759971910389,177.15167297,228.12,228.11,0.1]
[1759971910884,181.53533069,228.12,228.11,0.1]
[1759971911084,182.23533069,228.12,228.11,0.1]
[1759971914101,47.93533069,228.12,228.11,0.1]
[1759971915013,47.91533069,228.12,228.11,0.1]
[1759971918295,48.41533069,228.12,228.11,0.1]
[1759971918598,47.28013293,228.12,228.11,0.1]
[1759971918798,48.41533069,228.12,228.11,0.1]
[1759971920011,17.59533069,228.12,228.11,0.1]
[1759971920200,48.41533069,228.12,228.11,0.1]
[1759971920907,31.67647521,228.08,227.97,0.82]
[1759971921106,1.13519776,227.99,227.97,0.82]
[1759971921312,30.86,227.98,227.97,0.1]
[1759971922013,30.86,227.98,227.97,0.82]
[1759971922211,1.13519776,227.99,227.97,0.82]
[1759971922418,1.13519776,227.99,227.98,0.72]
[1759971922915,31.99519776,227.99,227.98,0.72]
[1759971923114,1.13519776,227.99,227.98,0.72]
[1759971923316,31.97519776,227.99,227.98,0.72]
[1759971923504,30.84,227.99,227.98,0.72]
[1759971923811,1.13519776,228.0,227.98,0.72]
[1759971923998,31.99519776,227.99,227.98,0.72]
[1759971924196,1.13519776,227.99,227.98,0.72]
[1759971925215,31.99519776,227.99,227.98,0.72]
[1759971925707,20.8,228.03,227.98,5.10634967]
[1759971925907,20.8,228.03,227.99,0.72]
[1759971925908,30.86,228.02,227.99,0.72]
[1759971926422,1.13519776,228.07,228.0,1.13519776]
[1759971926617,30.86,228.06,228.01,1.85519776]
[1759971926825,1.13519776,228.08,228.03,4.38538788]
[1759971927010,30.86,228.06,228.04,0.72]
[1759971927209,30.86,228.06,228.05,0.72]
[1759971927618,30.86,228.06,228.01,1.13519776]
[1759971927619,31.99519776,228.06,228.01,0.72]
[1759971927828,1.13519776,228.05,228.02,0.72]
[1759971928010,1.13519776,228.04,228.02,0.72]
[1759971928516,30.86,228.06,227.99,0.72]
[1759971928517,31.99519776,228.03,227.99,0.72]
[1759971928897,31.99519776,228.03,228.0,5.10592027]
[1759971929304,30.86,228.03,228.01,0.72]
[1759971929504,30.86,228.03,227.99,0.72]
[1759971929704,30.86,228.03,228.0,0.72]
[1759971930023,30.86,228.03,228.01,0.72]
[1759971930208,30.86,228.03,227.98,5.52135773]
[1759971930404,30.86,228.03,227.99,0.72]
[1759971930803,30.86,228.03,228.0,5.10596491]
[1759971931927,30.86,228.03,227.97,1.23519776]
[1759971931928,1.77820251,228.01,227.97,0.1]
[1759971932105,1.77820251,227.99,227.97,0.1]
[1759971932418,1.77820251,227.98,227.97,0.1]
[1759971933126,6.86455218,227.98,227.97,0.1]
[1759971934208,6.16455218,227.98,227.97,0.1]
[1759971934433,6.86455218,227.98,227.97,0.1]
[1759971934623,7.36455218,227.98,227.97,0.1]
[1759971935331,39.04102739,227.98,227.97,0.1]
[1759971935525,1.77820251,227.93,227.84,4.38885587]
[1759971935825,1.77820251,227.89,227.84,4.38885587]
[1759971936016,32.69820251,227.89,227.84,4.38885587]
[1759971936924,1.77820251,227.95,227.88,1.77820251]
[1759971937105,30.92,227.94,227.89,1.77820251]
[1759971938116,30.92,227.94,227.88,1.77820251]
[1759971938302,32.69820251,227.94,227.87,1.77820251]
[1759971938503,32.69820251,227.94,227.88,4.38827453]
[1759971938721,35.30719451,227.94,227.86,4.38858251]
[1759971938926,1.77820251,227.91,227.86,4.38858251]
[1759971939242,1.77820251,227.9,227.84,6.16711829]
[1759971939607,1.77820251,227.9,227.84,4.38891578]
[1759971939803,30.94,227.89,227.84,4.38891578]
[1759971941117,31.44,227.89,227.84,4.38891578]
[1759971941327,30.94,227.89,227.84,4.38891578]
[1759971942530,30.94,227.89,227.82,10.97315994]
[1759971942728,30.94,227.89,227.83,1.77820251]
[1759971944137,30.94,227.89,227.82,10.97315994]
[1759971944441,30.94,227.89,227.83,1.77820251]
[1759971944827,30.94,227.89,227.84,4.38904494]
[1759971946025,0.5,227.88,227.84,4.38904494]
[1759971946741,0.5,227.88,227.87,1.77820251]
[1759971947113,0.5,227.88,227.84,4.38904494]
[1759971947720,0.5,227.88,227.84,6.16724745]
[1759971948134,0.5,227.88,227.84,4.38904494]
[1759971948340,0.5,227.88,227.84,6.16724745]
[1759971948727,0.5,227.88,227.84,4.38904494]
[1759971949513,2.27820251,227.88,227.84,4.38904494]
[1759971949820,0.5,227.88,227.84,6.16724745]
[1759971950027,0.5,227.88,227.85,1.77820251]
[1759971950236,0.5,227.88,227.86,1.77820251]
[1759971950420,0.5,227.88,227.87,4.3884671]
[1759971951130,0.5,227.88,227.87,6.16666961]
[1759971952144,0.5,227.88,227.87,26.96666961]
[1759971952743,1.77820251,227.93,227.87,26.96666961]
[1759971953038,1.77820251,227.92,227.87,4.3884671]
[1759971953242,1.77820251,227.9,227.87,4.3884671]
[1759971954739,1.77820251,227.9,227.85,4.38885231]
[1759971956022,0.5,227.88,227.85,4.38885231]
[1759971957026,0.5,227.88,227.85,6.16705482]
[1759971957233,0.5,227.88,227.87,1.77820251]
[1759971958034,0.5,227.88,227.87,26.96666961]
[1759971958441,0.5,227.88,227.87,25.1884671]
[1759971958749,0.5,227.88,227.87,26.96666961]
[1759971958941,0.5,227.88,227.87,27.67666961]
[1759971959141,29.66,227.96,227.87,38.64783738]
[1759971959341,29.66,227.96,227.92,1.77820251]
[1759971960162,1.77820251,227.99,227.93,4.38731189]
[1759971960329,10.87647521,228.03,227.95,1.77820251]
[1759971960524,1.77820251,227.99,227.93,4.38731189]
[1759971960749,1.77820251,227.96,227.93,4.38731189]
[1759971960946,0.72,227.99,227.93,4.38731189]
[1759971960947,1.77820251,227.97,227.93,4.38731189]
[1759971961252,1.77820251,227.98,227.93,4.38731189]
[1759971961424,2.49820251,227.98,227.93,4.38731189]
[1759971961631,2.49820251,227.98,227.92,4.38750438]
[1759971961835,1.77820251,227.98,227.92,6.16570689]
[1759971962530,1.77820251,227.98,227.92,17.13446785]
[1759971962731,1.77820251,227.99,227.93,1.77820251]
[1759971962932,1.77820251,228.01,227.95,1.77820251]
[1759971964259,1.77820251,228.01,227.96,4.38673451]
[1759971964455,1.77820251,228.0,227.96,4.38673451]
[1759971965269,1.77820251,228.0,227.95,4.38692695]
[1759971965841,46.22187221,228.03,227.95,4.38692695]
[1759971966040,1.77820251,228.01,227.95,6.16512946]
[1759971966366,41.83647521,228.03,227.96,1.77820251]
[1759971966655,30.96,228.03,227.98,1.77820251]
[1759971966859,30.96,228.03,227.99,1.77820251]
[1759971967156,30.96,228.03,228.0,6.16416742]
[1759971967558,30.96,228.03,228.0,17.1290797]
[1759971967745,1.77820251,228.09,228.02,1.77820251]
[1759971967945,30.96,228.08,228.03,1.77820251]
[1759971968135,30.96,228.08,228.02,1.77820251]
[1759971968332,30.96,228.08,228.01,1.77820251]
[1759971968333,32.73820251,228.08,228.01,1.77820251]
[1759971969250,1.77820251,228.06,228.02,4.38558021]
[1759971969458,0.66,228.05,228.02,4.38558021]
[1759971969745,30.96,228.08,227.81,1.77820251]
[1759971969746,1.77820251,228.03,227.81,1.77820251]
[1759971969963,1.77820251,227.99,227.93,1.77820251]
[1759971970138,1.77820251,227.99,227.94,20.8]
[1759971970537,2.43820251,227.99,227.93,1.77820251]
[1759971970738,0.66,227.99,227.94,22.57820251]
[1759971970961,1.77820251,228.0,227.95,4.38692695]
[1759971971157,1.77820251,228.01,227.95,4.38692695]